bitfinex-derivatives/quotes_ETHF0:USTF0_20210102
["timestamp","ask_amount","ask_price","bid_price","bid_amount"]
[1609587893340,91.80868,728.7,728.62,6.01438]
[1609587893842,5.01822407,728.68,728.62,6.01438]
[1609587894541,5.01822534,728.69,728.63,2.7695]
[1609587895340,5.01822534,728.69,728.62,6.01438]
[1609587897143,2.7253,728.68,728.62,6.01438]
[1609587897342,2.7661,728.67,728.62,6.01438]
[1609587897542,2.7661,728.67,728.63,2.7146]
[1609587898748,5.01826849,728.66,728.63,2.7146]
[1609587898945,5.01826849,728.66,728.62,6.01438]
[1609587899847,5.01826849,728.66,728.63,2.7826]
[1609587900047,2.7541,728.65,728.63,2.7826]
[1609587900647,2.7541,728.65,728.62,6.01438]
[1609587900849,5.01826849,728.66,728.62,6.01438]
[1609587901648,6.01438,728.64,728.62,6.01438]
[1609587902149,5.01797128,728.78,728.62,6.01438]
[1609587902550,2.65337879,728.78,728.62,6.01438]
[1609587903149,5.01802579,728.73,728.62,6.01438]
[1609587905254,2.65336953,728.77,728.62,6.01438]
[1609587905454,2.65336953,728.77,728.7,85.1223]
[1609587905653,2.65336953,728.77,728.71,6.01438]
[1609587906454,2.65352213,728.83,728.71,6.01438]
[1609587907256,2.65612536,728.96,728.71,6.01438]
[1609587907655,2.65612536,728.96,728.91,6.01438]
[1609587907856,2.65612536,728.96,728.91,10.35638]
[1609587908057,2.65612536,728.96,728.95,80.6049]
[1609587908357,2.65671546,728.99,728.95,80.6049]
[1609587909063,2.65692698,729.01,728.95,80.6049]
[1609587909762,2.65692698,729.01,729.0,6.01438]
[1609587910166,2.657351,729.03,729.0,6.01438]
[1609587911265,2.65702915,729.02,729.0,6.01438]
[1609587912566,2.65779145,729.04,729.0,6.01438]
[1609587913365,2.65779145,729.04,728.91,4.342]
[1609587913566,2.65779145,729.04,728.89,91.7492]
[1609587913766,6.01438,729.01,728.89,91.7492]
[1609587914768,5.01665984,729.0,728.89,91.7492]
[1609587920677,5.01665984,729.0,728.9,15.0]
[1609587920877,5.01665984,729.0,728.9,19.06]
[1609587921781,5.01665984,729.0,728.99,6.01438]
[1609587923682,1.99376057,729.05,728.99,6.01438]
[1609587924382,1.99376057,729.05,728.9,4.06]
[1609587924882,1.99315184,729.0,728.9,4.06]
[1609587925784,1.99315184,729.0,728.91,6.01438]
[1609587926984,1.99259358,728.94,728.91,6.01438]
[1609587927184,8.67117144,729.01,728.91,6.01438]
[1609587927785,5.01634666,728.93,728.91,6.01438]
[1609587928887,1.99309411,728.99,728.91,6.01438]
[1609587929485,7.00974475,729.0,728.91,6.01438]
[1609587930086,1.99255897,728.95,728.91,6.01438]
[1609587930985,1.99256146,728.96,728.91,6.01438]
[1609587931986,1.99301131,728.99,728.91,6.01438]
[1609587933990,7.0099914,729.0,728.91,6.01438]
[1609587934991,1.99337108,728.99,728.91,6.01438]
[1609587935689,1.99378245,728.98,728.91,6.01438]
[1609587937193,1.99510469,728.99,728.91,6.01438]
[1609587938193,1.99530103,728.97,728.91,6.01438]
[1609587939097,5.01646135,729.0,728.91,6.01438]
[1609587939098,1.99550013,728.99,728.91,6.01438]
[1609587940801,1.9954245,728.97,728.91,6.01438]
[1609587941800,5.01646135,729.0,728.91,6.01438]
[1609587941801,1.995447,728.98,728.91,6.01438]
[1609587942301,5.01619339,728.96,728.91,6.01438]
[1609587943001,1.995447,728.98,728.91,6.01438]
[1609587943502,1.995447,728.98,728.92,2.776]
[1609587943801,1.995447,728.98,728.91,6.01438]
[1609587945604,5.0162112,729.0,728.91,6.01438]
[1609587945605,1.99469305,728.97,728.91,6.01438]
[1609587947004,1.99511164,728.99,728.91,6.01438]
[1609587948404,5.0162112,729.0,728.91,6.01438]
[1609587948405,7.01132266,729.0,728.91,6.01438]
[1609587949607,1.99478954,728.99,728.91,6.01438]
[1609587950708,7.01119332,729.0,728.91,6.01438]
[1609587951610,1.99550094,729.05,728.91,6.01438]
[1609587952409,1.99550094,729.05,729.04,6.01438]
[1609587952609,1.99591336,729.07,729.04,6.01438]
[1609587953810,2.66121781,729.15,729.04,6.01438]
[1609587953811,1.99602866,729.09,729.04,6.01438]
[1609587954711,1.99602866,729.09,729.08,94.1979]
[1609587954911,1.99602866,729.09,729.08,98.7629]
[1609587955112,11.68781418,729.23,729.08,98.7629]
[1609587955113,2.66113411,729.14,729.08,98.7629]
[1609587956614,2.66113411,729.14,729.13,6.01438]
[1609587956815,2.66106833,729.15,729.13,6.01438]
[1609587960519,2.6609453,729.14,729.13,6.01438]
[1609587962021,2.6613162,729.16,729.08,98.7629]
[1609587962920,2.6613162,729.16,729.15,6.01438]
[1609587963821,7.67692014,729.16,729.15,6.01438]
[1609587965023,7.67692014,729.16,729.08,4.565]
[1609587965224,7.67692014,729.16,728.92,80.2857]
[1609587965425,13.37590362,729.16,728.92,80.2857]
[1609587966128,1.99474261,728.98,728.92,80.2857]
[1609587966923,6.01438,728.93,728.92,80.2857]
[1609587969228,13.0249334,728.93,728.92,80.2857]
[1609587969428,7.0105534,728.93,728.92,80.2857]
[1609587970028,1.99400704,728.93,728.92,80.2857]
[1609587970928,6.01438,728.93,728.92,80.2857]
[1609587972932,6.01438,728.93,728.92,86.30008]
[1609587973232,11.03071944,728.93,728.92,86.30008]
[1609587974432,5.01633944,728.93,728.92,80.2857]
[1609587975031,11.03071944,728.93,728.92,86.30008]
[1609587975534,6.01438,728.93,728.92,86.30008]
[1609587975733,1.99488766,728.96,728.92,86.30008]
[1609587976433,5.01617734,728.93,728.92,86.30008]
[1609587977434,1.99532829,728.97,728.92,86.30008]
[1609587978834,1.99532829,728.97,728.92,80.2857]
[1609587979437,1.99532829,728.97,728.96,6.01438]
[1609587980041,1.99532829,728.97,728.92,80.2857]
[1609587981337,1.99532829,728.97,728.96,6.01438]
[1609587983138,1.99532829,728.97,728.92,80.2857]
[1609587983837,1.99532829,728.97,728.96,6.01438]
[1609587985242,1.99593365,728.98,728.96,6.01438]
[1609587986342,5.01628297,729.0,728.96,6.01438]
[1609587987445,5.01628297,729.0,728.92,80.2857]
[1609587988046,5.01628297,729.0,728.96,6.01438]
[1609587988446,5.01628297,729.0,728.92,80.2857]
[1609587988646,2.66086213,729.03,728.92,80.2857]
[1609587988647,1.99581944,728.96,728.92,80.2857]
[1609587988846,1.99581944,728.96,728.9,4.06]
[1609587989051,1.99581944,728.96,728.95,113.4489]
[1609587989247,1.99662401,728.98,728.95,117.4839]
[1609587990048,1.99662401,728.98,728.97,6.01438]
[1609587990248,1.99727732,729.04,728.97,6.01438]
[1609587990649,1.33188464,729.0,728.97,6.01438]
[1609587995249,1.99784513,729.07,728.97,6.01438]
[1609587996151,1.99784513,729.07,729.06,17.64258]
[1609587996350,2.00037238,729.08,729.06,17.64258]
[1609587997450,2.0012648,729.1,729.06,17.64258]
[1609587998454,2.00130449,729.11,729.06,17.64258]
[1609587999153,2.0013785,729.12,729.06,17.64258]
[1609587999950,2.00122626,729.11,729.06,17.64258]
[1609588000451,2.00122626,729.11,729.06,6.01438]
[1609588000653,2.00141651,729.13,729.06,6.01438]
[1609588002255,2.00141651,729.13,729.06,92.96018]
[1609588005657,2.7235,729.12,729.07,2.7651]
[1609588005856,2.7575,729.11,729.07,2.7651]
[1609588006056,2.00141651,729.13,729.06,92.96018]
[1609588006757,2.00158447,729.12,729.06,92.96018]
[1609588008159,2.7375,729.11,729.07,2.725]
[1609588008460,2.00158447,729.12,729.06,92.96018]
[1609588008661,2.00203979,729.11,729.06,92.96018]
[1609588009461,4.78123979,729.11,729.07,2.708]
[1609588009862,2.00203979,729.11,729.06,92.96018]
[1609588010061,2.00193262,729.12,729.06,92.96018]
[1609588010762,2.758,729.11,729.06,92.96018]
[1609588010963,1.33514588,729.1,729.06,92.96018]
[1609588012165,4.0932376,729.11,729.06,92.96018]
[1609588013865,1.1492376,729.11,729.06,92.96018]
[1609588014266,2.00289086,729.18,729.06,92.96018]
[1609588014667,2.00289086,729.18,729.17,6.01438]
[1609588014866,4.77989086,729.18,729.17,8.75688]
[1609588015267,4.77989086,729.18,729.17,13.14888]
[1609588015870,4.77989086,729.18,729.17,27.88458]
[1609588016666,7.79177086,729.18,729.17,27.88458]
[1609588016866,5.01477086,729.18,729.17,25.14208]
[1609588017466,5.01477086,729.18,729.17,10.40638]
[1609588017866,7.75837086,729.18,729.17,13.16728]
[1609588018270,2.7436,729.18,729.17,100.09998]
[1609588018867,2.00310362,729.2,729.17,97.33908]
[1609588019067,2.00310362,729.2,729.17,10.40638]
[1609588019769,2.7608,729.19,729.18,2.7496]
[1609588021770,2.67061735,729.26,729.17,10.40638]
[1609588021971,5.01472792,729.19,729.17,10.40638]
[1609588022772,2.0026683,729.2,729.17,10.40638]
[1609588023778,2.00361136,729.25,729.17,10.40638]
[1609588024873,2.00361136,729.25,729.17,4.392]
[1609588025277,2.67148181,729.32,729.14,109.1163]
[1609588025474,8.35787986,729.46,729.14,109.1163]
[1609588025475,2.00372196,729.26,729.24,6.01438]
[1609588025674,2.00372196,729.26,729.25,11.4624]
[1609588027177,2.6716435,729.32,729.25,11.4624]
[1609588027377,2.6716435,729.32,729.31,6.01438]
[1609588028278,2.67163962,729.33,729.31,6.01438]
[1609588032385,8.35787986,729.46,729.31,6.01438]
[1609588032386,3.33949729,729.39,729.31,6.01438]
[1609588033688,19.22475493,729.46,729.31,6.01438]
[1609588033689,2.6721871,729.33,729.31,6.01438]
[1609588038493,2.6721871,729.33,729.25,11.4624]
[1609588038691,7.67899183,729.32,729.25,11.4624]
[1609588039491,5.01452879,729.32,729.25,11.4624]
[1609588040092,5.01452879,729.32,729.31,6.01438]
[1609588041302,2.66439731,729.34,729.31,6.01438]
[1609588042598,2.66439731,729.34,729.25,11.4624]
[1609588042801,2.66420145,729.35,729.25,11.4624]
[1609588044105,2.66420145,729.35,729.34,6.01438]
[1609588044301,2.66420145,729.35,729.34,10.81438]
[1609588044901,2.66420145,729.35,729.34,25.79278]
[1609588046613,3.33025182,729.42,729.34,25.79278]
[1609588047011,3.33025182,729.42,729.34,19.7784]
[1609588048312,3.33025182,729.42,729.34,4.8]
[1609588048511,3.33025182,729.42,729.41,101.14068]
[1609588050014,3.33025182,729.42,729.41,95.1263]
[1609588050615,3.33025182,729.42,729.41,101.14068]
[1609588051216,3.33025182,729.42,729.41,6.01438]
[1609588052419,3.33025182,729.42,729.41,13.7426]
[1609588053017,3.33025182,729.42,729.41,19.75698]
[1609588054017,5.83669535,729.49,729.41,19.75698]
[1609588054018,5.01408798,729.45,729.41,19.75698]
[1609588054218,5.01408798,729.45,729.41,6.01438]
[1609588054417,5.01408798,729.45,729.44,100.7061]
[1609588054617,2.27408798,729.45,729.44,100.7061]
[1609588054818,5.83606598,729.5,729.44,100.7061]
[1609588055019,5.83606598,729.5,729.49,6.01438]
[1609588055419,3.06606598,729.5,729.49,9.77238]
[1609588057523,11.6871306,729.55,729.49,9.77238]
[1609588059722,2.00101596,729.5,729.49,9.77238]
[1609588060323,1.596e-05,729.5,729.49,9.77238]
[1609588061326,5.0124075,729.54,729.49,9.77238]
[1609588062527,5.01238623,729.53,729.49,9.77238]
[1609588064030,2.66664411,729.62,729.49,9.77238]
[1609588064830,2.66694376,729.65,729.49,9.77238]
[1609588065029,2.66694376,729.65,729.64,6.01438]
[1609588065229,2.66694376,729.65,729.64,10.80538]
[1609588065638,2.66730194,729.67,729.64,10.80538]
[1609588069232,1.94e-06,729.67,729.64,10.80538]
[1609588070632,5.01195746,729.66,729.64,10.80538]
[1609588071036,5.01195746,729.66,729.65,83.6789]
[1609588073937,2.23915746,729.66,729.65,83.6789]
[1609588074137,11.6769431,729.98,729.65,83.6789]
[1609588074138,5.01174512,729.73,729.65,83.6789]
[1609588075041,5.01174512,729.73,729.72,6.01438]
[1609588076540,3.33544404,729.83,729.72,6.01438]
[1609588076939,3.33639393,729.88,729.72,6.01438]
[1609588077140,3.33639393,729.88,729.87,6.01438]
[1609588077345,3.33639393,729.88,729.87,19.25308]
[1609588077540,0.77449393,729.88,729.87,19.25308]
[1609588077746,5.84760833,729.97,729.87,23.62008]
[1609588079142,5.84760833,729.97,729.96,6.01438]
[1609588079442,5.84794434,729.98,729.96,6.01438]
[1609588081943,6.01438,730.1,729.96,6.01438]
[1609588081944,8.34924657,730.02,729.96,6.01438]
[1609588083045,8.34851026,730.01,729.96,6.01438]
[1609588085353,5.84786283,729.97,729.96,6.01438]
[1609588085954,5.84786283,729.97,729.96,101.79548]
[1609588086156,5.84951291,730.01,729.96,101.79548]
[1609588087855,5.8486842,730.0,729.96,101.79548]
[1609588088758,5.84902893,730.01,729.96,101.79548]
[1609588089155,5.84902893,730.01,729.96,6.01438]
[1609588091260,5.84840651,730.0,729.96,6.01438]
[1609588092164,5.84919545,730.02,729.99,99.1732]
[1609588095360,5.84919545,730.02,729.96,6.01438]
[1609588095762,8.35867591,730.1,729.96,6.01438]
[1609588095763,5.8539657,730.1,729.96,6.01438]
[1609588096664,6.01438,730.14,729.96,6.01438]
[1609588096665,5.85387785,730.08,730.07,80.689]
[1609588097165,5.85387785,730.08,730.07,86.70338]
[1609588099967,5.85390924,730.09,730.07,86.70338]
[1609588100367,5.85385895,730.08,730.07,91.39038]
[1609588104871,5.01047866,730.13,730.07,91.39038]
[1609588105571,5.8536811,730.08,730.07,91.39038]
[1609588107473,5.8536811,730.08,730.07,10.70138]
[1609588107873,5.8536811,730.08,730.07,4.687]
[1609588108075,102.7301811,730.08,729.87,4.367]
[1609588108476,102.7301811,730.08,729.78,82.1116]
[1609588108775,96.8765,730.08,729.78,82.1116]
[1609588108975,111.8765,730.08,729.78,82.1116]
[1609588109176,6.01438,729.97,729.84,6.01438]
[1609588109877,3.33984732,729.89,729.84,6.01438]
[1609588110076,3.33984732,729.89,729.88,106.2363]
[1609588110377,3.33984732,729.89,729.88,110.7103]
[1609588110776,3.34024779,729.91,729.88,110.7103]
[1609588112677,11.69921787,730.13,729.88,110.7103]
[1609588112678,3.34055924,729.92,729.88,110.7103]
[1609588113280,2.7665,729.91,729.89,2.7609]
[1609588115085,3.34055924,729.92,729.88,110.7103]
[1609588116191,2.7679,729.91,729.89,2.7313]
[1609588116392,3.34055924,729.92,729.88,4.474]
[1609588116592,3.34055924,729.92,729.84,6.01438]
[1609588116791,3.34023107,729.91,729.88,3.63]
[1609588116990,109.2784,729.89,729.88,3.63]
[1609588118092,15.0,729.9,729.88,3.63]
[1609588118494,17.745,729.9,729.88,6.3405]
[1609588118793,15.0,729.9,729.88,3.63]
[1609588119997,17.7776,729.9,729.88,6.4073]
[1609588120397,17.7776,729.9,729.88,4.8502]
[1609588120797,15.0,729.9,729.88,2.0729]
[1609588120998,15.0,729.89,729.88,2.0729]
[1609588121400,20.0122177,729.89,729.88,2.0729]
[1609588121796,20.0122177,729.89,729.68,99.5151]
[1609588122297,5.0122177,729.89,729.68,99.5151]
[1609588122696,5.0122177,729.89,729.69,2.7443]
[1609588122896,2.7538,729.88,729.69,2.7443]
[1609588123296,2.7538,729.88,729.73,6.01438]
[1609588123496,2.7538,729.88,729.81,93.4572]
[1609588123698,2.7538,729.88,729.82,2.7532]
[1609588123897,8.3607616,729.87,729.82,2.7532]
[1609588124998,3.34095815,729.85,729.82,2.7532]
[1609588125601,3.34095972,729.86,729.82,2.7532]
[1609588127201,3.34095972,729.86,729.83,6.01438]
[1609588128502,5.01142296,729.84,729.83,6.01438]
[1609588129502,5.01137865,729.86,729.83,6.01438]
[1609588130201,5.01137865,729.86,729.84,2.7268]
[1609588130603,3.34092677,729.88,729.84,2.7268]
[1609588132605,3.3409676,729.87,729.84,2.7268]
[1609588133207,3.3409676,729.87,729.8,4.676]
[1609588133405,3.3409676,729.87,729.76,6.01438]
[1609588134210,2.7059,729.86,729.77,2.721]
[1609588134411,3.34121004,729.83,729.77,2.721]
[1609588135212,6.01438,729.81,729.77,2.721]
[1609588135611,9.3555421,729.81,729.77,2.721]
[1609588136513,3.3411621,729.81,729.77,2.721]
[1609588136815,3.34108164,729.78,729.77,2.721]
[1609588137213,3.34108164,729.78,729.51,101.4273]
[1609588137413,3.34108164,729.78,729.77,6.01438]
[1609588137614,3.34108164,729.78,729.77,10.11038]
[1609588138315,6.06068164,729.78,729.77,12.87988]
[1609588139614,3.28738164,729.78,729.77,12.87988]
[1609588139917,10.40332221,729.78,729.77,12.87988]
[1609588140117,7.68372221,729.78,729.77,10.11038]
[1609588140319,5.01112318,729.78,729.77,10.11038]
[1609588141017,7.72852318,729.78,729.77,12.85028]
[1609588142120,5.01112318,729.78,729.77,10.11038]
[1609588143124,7.78502318,729.78,729.77,12.87958]
[1609588143723,2.7739,729.78,729.77,12.87958]
[1609588143924,2.7739,729.78,729.77,132.98158]
[1609588144125,2.67263381,729.82,729.77,130.21238]
[1609588144324,5.01096428,729.78,729.77,130.21238]
[1609588144723,2.23366428,729.78,729.77,130.21238]
[1609588145125,4.99736428,729.78,729.77,132.91828]
[1609588145526,2.7637,729.78,729.77,132.91828]
[1609588145828,4.30864566,729.78,729.77,132.91828]
[1609588146126,1.54494566,729.78,729.77,130.21238]
[1609588147128,4.28214566,729.78,729.77,132.98958]
[1609588147729,2.7372,729.78,729.77,132.98958]
[1609588148531,2.7372,729.78,729.77,117.98958]
[1609588148731,1.54492523,729.78,729.77,115.21238]
[1609588148929,0.20722523,729.78,729.77,115.21238]
[1609588149630,2.96302523,729.78,729.77,117.95308]
[1609588151034,4.0919419,729.78,729.77,117.95308]
[1609588151231,1.3361419,729.78,729.77,115.21238]
[1609588152230,1.3361419,729.78,729.77,117.96598]
[1609588152432,4.0724419,729.78,729.77,117.96598]
[1609588153033,1.3361419,729.78,729.77,115.21238]
[1609588153335,1.33604434,729.79,729.77,115.21238]
[1609588153537,1.33604434,729.79,729.78,90.7374]
[1609588153934,4.09324434,729.79,729.78,93.4828]
[1609588155039,2.7572,729.79,729.78,93.4828]
[1609588157745,2.7572,729.79,729.78,108.4828]
[1609588158743,1.3359893,729.87,729.78,108.4828]
[1609588159346,1.3359893,729.87,729.86,6.01438]
[1609588159745,4.0533893,729.87,729.86,6.01438]
[1609588159943,1.3359893,729.87,729.86,6.01438]
[1609588160446,1.33600428,729.92,729.86,6.01438]
[1609588160944,2.7545,729.91,729.86,6.01438]
[1609588161946,1.33599396,729.9,729.86,6.01438]
[1609588163648,2.7532,729.89,729.88,12.9424]
[1609588163847,2.3026,729.89,729.88,12.9424]
[1609588164554,2.00413058,729.95,729.88,12.9424]
[1609588165053,2.00412227,729.93,729.88,12.9424]
[1609588165353,2.00412227,729.93,729.92,6.01438]
[1609588165954,2.00412227,729.93,729.92,10.94638]
[1609588166454,5.01035378,729.93,729.92,10.94638]
[1609588168156,2.67218887,729.99,729.92,10.94638]
[1609588169860,2.67222608,729.98,729.92,10.94638]
[1609588173366,3.34058983,729.98,729.92,10.94638]
[1609588174364,3.34061897,729.99,729.92,10.94638]
[1609588174865,3.34061946,729.98,729.92,10.94638]
[1609588176366,3.34056355,729.99,729.92,10.94638]
[1609588177467,3.34054641,730.0,729.92,10.94638]
[1609588178873,3.34057341,729.98,729.92,10.94638]
[1609588179470,6.01438,729.94,729.92,10.94638]
[1609588180472,5.01102643,729.93,729.92,10.94638]
[1609588181174,23.35060619,729.93,729.92,10.94638]
[1609588182372,23.35060619,729.93,729.92,4.932]
[1609588183074,8.35060619,729.93,729.77,4.096]
[1609588183572,8.35060619,729.93,729.64,104.8151]
[1609588183573,6.01438,729.78,729.72,6.01438]
[1609588184177,11.02628511,729.78,729.72,6.01438]
[1609588186075,5.01203285,729.77,729.72,6.01438]
[1609588190083,2.67000182,729.77,729.72,6.01438]
[1609588191783,2.67010815,729.78,729.72,6.01438]
[1609588191980,2.67010815,729.78,729.72,9.77838]
[1609588194584,2.6705007,729.76,729.72,9.77838]
[1609588197488,2.6705007,729.76,729.73,15.1857]
[1609588201699,2.67157499,729.77,729.73,15.1857]
[1609588205503,2.67157499,729.77,729.72,9.77838]
[1609588205705,105.0744,729.73,729.72,9.77838]
[1609588207610,110.08621651,729.73,729.72,9.77838]
[1609588208517,118.43936833,729.73,729.72,9.77838]
[1609588210420,121.11103314,729.73,729.72,9.77838]
[1609588215931,118.43936833,729.73,729.72,9.77838]
[1609588217133,118.43936833,729.73,729.72,3.764]
[1609588217333,118.43936833,729.73,729.49,3.758]
[1609588217532,118.43936833,729.73,729.48,108.7299]
[1609588217733,118.43936833,729.73,729.7,6.01438]
[1609588217933,118.43936833,729.73,729.7,9.25438]
[1609588220436,13.36509578,729.72,729.7,9.25438]
[1609588237755,2.67326858,729.71,729.7,9.25438]
[1609588239256,13.36509578,729.72,729.7,9.25438]
[1609588240055,3.34165216,729.76,729.7,9.25438]
[1609588241257,3.3415465,729.77,729.7,9.25438]
[1609588245063,3.34169776,729.78,729.7,9.25438]
[1609588245862,6.01438,729.74,729.7,9.25438]
[1609588246865,5.01248321,729.73,729.7,9.25438]
[1609588248967,2.67277448,729.71,729.7,9.25438]
[1609588252574,2.00450819,729.77,729.7,9.25438]
[1609588253274,13.36369073,730.01,729.7,9.25438]
[1609588253275,1.3363632,729.71,729.7,9.25438]
[1609588255378,1.33635511,729.72,729.7,9.25438]
[1609588255875,1.33635511,729.72,729.71,15.0]
[1609588257077,1.33634154,729.73,729.71,15.0]
[1609588258983,2.00459038,729.79,729.71,15.0]
[1609588259981,2.00459038,729.79,729.78,6.01438]
[1609588260582,2.67278959,729.85,729.78,6.01438]
[1609588261384,7.01593403,729.79,729.78,6.01438]
[1609588263087,2.00455394,729.8,729.78,6.01438]
[1609588263286,2.00455394,729.8,729.78,17.99838]
[1609588263785,2.00455394,729.8,729.78,6.01438]
[1609588264289,2.00450709,729.79,729.78,6.01438]
[1609588264487,2.00450709,729.79,729.78,103.31578]
[1609588265488,2.67267612,729.86,729.78,103.31578]
[1609588268294,5.0109399,729.79,729.78,103.31578]
[1609588268493,5.0109399,729.79,729.78,97.3014]
[1609588269795,1.33629104,729.79,729.78,97.3014]
[1609588269995,1.33629104,729.79,729.78,103.31578]
[1609588270195,1.33629104,729.79,729.78,6.01438]
[1609588273596,2.00441726,729.85,729.78,6.01438]
[1609588274394,26.72602826,730.06,729.78,6.01438]
[1609588274395,2.00439486,729.86,729.78,6.01438]
[1609588275197,1.33626505,729.79,729.78,6.01438]
[1609588278099,2.00439486,729.86,729.78,6.01438]
[1609588281401,2.00439486,729.86,729.76,86.0036]
[1609588282400,2.00439486,729.86,729.85,6.01438]
[1609588282600,2.00439486,729.86,729.85,9.77138]
[1609588284104,2.67260991,729.92,729.87,107.5527]
[1609588284903,2.67260637,729.93,729.87,107.5527]
[1609588285102,2.67260637,729.93,729.92,6.01438]
[1609588286002,2.67260637,729.93,729.92,113.95438]
[1609588286907,26.72602826,730.06,729.92,113.95438]
[1609588286908,3.340535,730.0,729.92,113.95438]
[1609588288405,2.67243818,729.96,729.92,113.95438]
[1609588290808,2.67244443,729.97,729.92,113.95438]
[1609588291408,2.67243805,729.96,729.92,113.95438]
[1609588291809,3.34054756,730.03,729.92,6.01438]
[1609588292209,7.68338374,729.95,729.92,6.01438]
[1609588293511,2.67251969,729.94,729.92,6.01438]
[1609588294410,2.67251969,729.94,729.93,101.3692]
[1609588295010,2.67251969,729.94,729.92,6.01438]
[1609588296112,3.34083085,729.95,729.92,6.01438]
[1609588300521,3.34076542,729.97,729.92,6.01438]
[1609588306624,3.34067314,729.98,729.92,6.01438]
[1609588308525,3.34068767,729.99,729.92,6.01438]
[1609588313033,2.7598,729.98,729.93,2.7505]
[1609588314134,2.7598,729.98,729.92,6.01438]
[1609588314135,3.34068767,729.99,729.92,6.01438]
[1609588314336,5.0109701,729.97,729.92,6.01438]
[1609588314936,3.34068767,729.99,729.92,6.01438]
[1609588315137,3.34068767,729.99,729.93,2.7593]
[1609588315336,2.7091,729.98,729.93,2.7593]
[1609588315537,3.34068767,729.99,729.92,6.01438]
[1609588315936,3.34062207,729.98,729.92,6.01438]
[1609588316642,2.7,729.97,729.93,2.7327]
[1609588318544,3.34067815,729.99,729.92,6.01438]
[1609588319142,5.01108728,729.96,729.92,6.01438]
[1609588319643,5.01108728,729.96,729.93,2.7133]
[1609588319844,6.04921546,729.98,729.93,2.7133]
[1609588320344,5.01101296,729.95,729.93,2.7133]
[1609588320745,5.01101296,729.95,729.92,6.01438]
[1609588321647,8.35170968,729.97,729.92,6.01438]
[1609588321847,2.7203,729.96,729.93,2.7557]
[1609588323547,3.34061932,729.98,729.92,6.01438]
[1609588324649,3.34061932,729.98,729.93,2.7094]
[1609588325048,5.01090741,729.95,729.93,2.7094]
[1609588326052,3.34061932,729.98,729.93,2.7094]
[1609588326852,5.01093045,729.94,729.93,2.7094]
[1609588327852,3.34061932,729.98,729.93,2.7094]
[1609588328152,2.7562,729.97,729.93,2.7094]
[1609588328352,5.0110303,729.94,729.92,6.01438]
[1609588329152,3.34061932,729.98,729.92,6.01438]
[1609588329651,3.34061932,729.98,729.85,3.757]
[1609588329851,3.34061932,729.98,729.83,86.2105]
[1609588330154,3.34061932,729.98,729.97,6.01438]
[1609588330553,3.34061932,729.98,729.97,9.95838]
[1609588335061,3.34036849,730.02,729.97,9.95838]
[1609588336060,3.34029633,730.07,730.0,113.9567]
[1609588336360,3.34029633,730.07,730.06,6.01438]
[1609588336765,3.34029961,730.09,730.06,6.01438]
[1609588338467,3.33992903,730.12,730.06,6.01438]
[1609588339069,3.33992903,730.12,730.06,21.01438]
[1609588339268,5.00943651,730.08,730.06,21.01438]
[1609588339969,5.00925945,730.11,730.06,21.01438]
[1609588341269,2.00359176,730.14,730.06,21.01438]
[1609588342076,221.68354109,760.0,730.06,21.01438]
[1609588342077,1.00178622,730.08,730.06,21.01438]
[1609588342475,1.00178622,730.08,730.07,100.1044]
[1609588342674,1.00178622,730.08,730.07,115.1044]
[1609588343878,1.00177372,730.09,730.07,115.1044]
[1609588344678,1.00177003,730.1,730.07,115.1044]
[1609588350186,1.00177003,730.1,730.07,100.1044]
[1609588351987,1.00177003,730.1,730.06,6.01438]
[1609588354790,1.00182809,730.09,730.06,6.01438]
[1609588355794,2.00373572,730.11,730.06,6.01438]
[1609588357395,2.0037389,730.08,730.06,6.01438]
[1609588357602,2.0037389,730.08,730.01,113.3587]
[1609588358601,2.00376176,730.07,730.01,113.3587]
[1609588358800,2.00376176,730.07,730.06,6.01438]
[1609588359610,2.67166385,730.13,730.06,6.01438]
[1609588360303,2.00373508,730.07,730.06,6.01438]
[1609588362705,2.00372656,730.09,730.06,6.01438]
[1609588364009,2.0037153,730.07,730.06,6.01438]
[1609588364607,2.6716204,730.14,730.06,6.01438]
[1609588364807,5.00927012,730.07,730.06,6.01438]